[Event "FRA-ch Teams Top 16-A 2022"]
[Site "Chartres"]
[Date "2022.06.09"]
[Round "1.8"]
[White "Alexieva, Silvia"]
[Black "Sebag, Marie"]
[Result "1/2-1/2"]
[ECO "D00"]
[WhiteElo "2219"]
[BlackElo "2472"]
[Annotator "TA"]
[PlyCount "131"]
[EventDate "2022.06.09"]
[EventType "team-tourn"]
[EventCountry "FRA"]
[SourceTitle "playchess.com"]
[Source "ChessBase"]
[SourceQuality "1"]
[TimeControl "40/5400+30:1800+30"]

{[%evp 9,131,0,23,8,36,34,44,46,60,42,52,43,48,47,68,0,20,-39,-52,-62,-71,-126,-145,-165,-151,-142,-148,-199,-80,-74,-65,-65,18,20,20,24,24,6,13,0,0,0,0,0,0,0,0,8,8,0,8,8,100,-5,-17,-56,0,-38,0,0,3,4,279,222,207,222,463,456,2166,3558,1730,1260,1106,412,412,412,628,235,484,249,249,248,248,248,248,245,248,250,250,248,345,241,1168,704,1800,1393,5617,3126,29981,29982,29981,29982,29978,3260,1759,404,404,118,354,337,90,0,8,0,0,0,0,0,0,0,0,0,0,0]} 1. d4 {[%emt 0:00:04]} d5 {[%emt 0:00:05]} 2. Bf4 {[%emt 0:00:16]} c5 {[%emt 0:01:37]} 3. e3 {[%emt 0:00:24]} Nc6 {[%emt 0:01:28]} 4. c3 {[%emt 0:00:26]} Nf6 {[%emt 0:16:06]} 5. Nd2 {[%emt 0:00:34]} Qb6 {[%emt 0:15:51]} 6. Qb3 {[%emt 0:07:46] D00: 1 d4 d5: Unusual lines.} Bf5 {[%emt 0:06:00]} 7. dxc5 {[%emt 0:11:09]} Qxb3 {[%emt 0:00:10]} 8. axb3 {[%emt 0:00:14] White is slightly better.} e5 {[%emt 0:00:58]} 9. Bg3 {[%emt 0:00:28]} Bxc5 {[%emt 0:02:32]} 10. Ngf3 {[%emt 0:06:33]} Nd7 {[%emt 0:07:05]} 11. b4 {[%emt 0:06:52]} Bd6 {[%emt 0:00:22] [#]} 12. Rd1 $146 {[%emt 0:10:40]} (12. Nd4 $1 $14 Nxd4 13. exd4) ({Predecessor:} 12. Be2 f6 13. O-O Kf7 14. Rfd1 Rhd8 15. e4 dxe4 16. Nxe4 Be7 17. Bc4+ Kf8 18. Nd6 Bxd6 19. Rxd6 {0-1 (53) Weetik,V (2423)-Le,Q (2709) Chess.com INT 2021}) 12... f6 $11 {[%emt 0:04:08] [#]} 13. Nc4 {[%emt 0:15:26]} dxc4 $15 {[%emt 0:00:34]} 14. Rxd6 {[%emt 0:00:05]} Ke7 {[%emt 0:00:30]} 15. Rd2 {[%emt 0:04:54]} (15. Rd1 $142) 15... b5 $17 {[%emt 0:06:38]} 16. Be2 {[%emt 0:01:19]} a5 {[%emt 0:10:28]} 17. bxa5 {[%emt 0:00:05]} Nxa5 {[%emt 0:04:56]} 18. O-O {[%emt 0:01:22]} (18. Nh4 $17 {might work better.} Be6 19. f4) 18... Nb6 {[%emt 0:01:14]} (18... Nb3 $19 {has better winning chances.} 19. Rd5 Nbc5) 19. Nh4 {[%emt 0:07:13]} Be6 {[%emt 0:03:45]} 20. f4 {[%emt 0:03:09]} Rhd8 {[%emt 0:02:46]} ({Better is} 20... Nb3 $15 21. Rdd1 Na4 22. fxe5 Nxb2) 21. Rxd8 $11 {[%emt 0:04:21]} Rxd8 {[%emt 0:00:03]} 22. fxe5 {[%emt 0:00:07]} Rd2 {[%emt 0:00:54][%csl LRb2,LRe2]} 23. exf6+ {[%emt 0:01:36]} gxf6 {[%emt 0:00:06]} 24. Bf3 {[%emt 0:00:49]} (24. Bh5 {keeps more tension.} Na4 25. e4 Rxb2 26. Nf5+) 24... Na4 {[%emt 0:01:24]} 25. Be4 {[%emt 0:03:33]} Rxb2 {[%emt 0:01:01]} 26. Bxh7 {[%emt 0:01:23] A strong pair of Bishops.} Nxc3 {[%emt 0:02:42]} 27. Ng6+ {[%emt 0:01:59]} Ke8 {[%emt 0:00:54] Hoping for ...Ne2+.} 28. Nf4 {[%emt 0:04:44]} Ne2+ {[%emt 0:01:30]} 29. Nxe2 {[%emt 0:00:13]} Rxe2 {[%emt 0:00:04]} 30. Rxf6 {[%emt 0:00:24]} Kd7 {[%emt 0:01:48]} (30... Ke7 $11 {remains equal.} 31. Rf2 Re1+ 32. Rf1 Rxe3) 31. h4 {[%emt 0:03:06]} (31. Rg6 $1 $16 {[%cal Rg6g7]}) 31... c3 {[%emt 0:02:18]} 32. Rf2 {[%emt 0:00:29]} Rxe3 {[%emt 0:03:25]} ({Black should try} 32... Rd2 $1 $15 33. h5 b4) 33. Kh2 {[%emt 0:00:56]} b4 {[%emt 0:01:08]} 34. h5 {[%emt 0:02:02] Threatens to win with h6.} b3 {[%emt 0:00:32][%cal Oe6g8]} 35. h6 {[%emt 0:00:39]} c2 $2 {[%emt 0:00:34][%mdl 8192] [#]} (35... Nc4 $11) 36. Bxc2 $1 {[%emt 0:00:56][%mdl 512]} bxc2 {[%emt 0:00:05]} 37. Rxc2 {[%emt 0:00:34]} Bg8 {[%emt 0:01:11]} (37... Bf5 38. Rc5 Ke6 39. Rxa5 Rd3 40. Ra6+ Kf7) 38. Rc7+ $18 {[%emt 0:01:17]} Ke8 {[%emt 0:01:59]} (38... Ke6 $142 39. Rg7 Kf5) 39. Rg7 $1 {[%emt 0:00:15]} (39. h7 Bxh7 40. Rxh7 Nc4 $14) 39... Re6 {[%emt 0:00:06]} 40. Rxg8+ {[%emt 0:00:43][%mdl 4096] Endgame KRB-KRN} Kf7 {[%emt 0:00:01]} 41. Rh8 {[%emt 0:30:08]} (41. Rg7+ $142 Kf8 42. Bf4) 41... Nc6 {[%emt 0:30:11]} 42. Bf4 {[%emt 0:00:39]} Ne7 {[%emt 0:00:17] Prevents Rc8.} (42... Ne5 $142 43. Kg3 Ng6) 43. Rh7+ $2 {[%emt 0:01:20]} (43. h7 {[%cal Oh8f8] Rf8+! is the strong threat.} Kg7 44. Re8 Kxh7 45. Bg5) 43... Kf6 $2 {[%emt 0:00:44]} (43... Kg8) 44. g4 {[%emt 0:00:00]} (44. Rg7 $142 {aiming for Bg5+.} Ng6 45. Bg5+ $1 {[%mdl 512]} Kf5 46. h7 $1) 44... Ng6 {[%emt 0:00:00]} 45. Bc1 {[%emt 0:00:00]} Rc6 {[%emt 0:00:00]} 46. g5+ {[%emt 0:00:00]} Kf5 {[%emt 0:00:00]} 47. Rf7+ {[%emt 0:00:00]} Kg4 {[%emt 0:00:00]} 48. Bd2 {[%emt 0:00:00]} Rc2 {[%emt 0:00:00]} 49. Rd7 {[%emt 0:00:00]} Ne5 {[%emt 0:01:04]} 50. Rd4+ {[%emt 0:00:00]} Kf5 $2 {[%emt 0:00:13]} (50... Kh5 51. Kg3 Nf7) 51. Kg3 {[%emt 0:00:00] Strongly threatening Rd6.} Ra2 {[%emt 0:01:14]} 52. Rd5 {[%emt 0:00:00] Intending h7 and mate.} Kg6 {[%emt 0:01:30]} 53. Rd6+ {[%emt 0:00:00]} Kh7 {[%emt 0:00:21]} 54. Kf4 {[%emt 0:00:20]} Ng6+ {[%emt 0:00:49]} 55. Kf5 {[%emt 0:00:30]} Ne7+ {[%emt 0:00:20]} 56. Ke6 {[%emt 0:00:21]} (56. Kg4 $142 Kg8 57. Rd8+ Kf7 58. h7 Ng6 59. Kh5 Ra7 60. Bc3 Nf4+ 61. Kh6 Ra6+ 62. Bf6) 56... Ra7 {[%emt 0:00:08]} 57. Bc3 {[%emt 0:01:36]} (57. Be3 $142 Rc7 58. Ra6) 57... Kg6 {[%emt 0:01:27]} 58. Bd4 $2 {[%emt 0:00:42]} (58. Rd7 $18 Rxd7 59. Kxd7) 58... Rb7 $16 {[%emt 0:00:19] [#]} 59. Bf6 $1 {[%emt 0:00:33]} ({Not} 59. Ke5+ Kxg5 60. h7 (60. Be3+ Kh5 $14) 60... Nc6+ 61. Rxc6 Rxh7 $14) 59... Nf5 {[%emt 0:00:53]} 60. h7 {[%emt 0:03:42]} (60. Ra6 $16 {And now Bd8 would win.} Nxh6 61. gxh6 Kxh6 62. Kf5) 60... Rxh7 $11 {[%emt 0:00:20] The position is equal.} 61. Rd8 {[%emt 0:00:25]} Ra7 {[%emt 0:01:04]} 62. Rg8+ {[%emt 0:00:50]} Ng7+ {[%emt 0:00:04]} 63. Ke5 {[%emt 0:00:20]} Kh7 {[%emt 0:00:25]} 64. Rxg7+ {[%emt 0:00:27]} Rxg7 {[%emt 0:00:04]} 65. Bxg7 {[%emt 0:00:03]} Kxg7 {[%emt 0:00:03]} 66. Ke4 {[%emt 0:02:29] White used his chance.  Weighted Error Value: White=0.43/Black=0.65} 1/2-1/2

[Event "FRA-ch Teams Top 16-A 2022"]
[Site "Chartres"]
[Date "2022.06.09"]
[Round "1.9"]
[White "Sochacki, Christophe"]
[Black "Postny, Evgeny"]
[Result "1/2-1/2"]
[ECO "A06"]
[WhiteElo "2493"]
[BlackElo "2563"]
[Annotator "TA"]
[PlyCount "51"]
[EventDate "2022.06.09"]
[EventType "team-tourn"]
[EventCountry "FRA"]
[SourceTitle "playchess.com"]
[Source "ChessBase"]
[SourceQuality "1"]
[TimeControl "40/5400+30:1800+30"]

{[%evp 11,51,16,19,0,12,3,7,0,0,0,0,0,9,11,43,13,0,0,0,0,4,0,0,0,0,-19,0,0,0,-18,0,-21,0,0,0,0,0,0,0,0,0,0]} 1. Nf3 {[%emt 0:00:06]} Nf6 {[%emt 0:00:29]} 2. b3 {[%emt 0:00:06]} d5 {[%emt 0:00:55]} 3. Bb2 {[%emt 0:00:10]} c5 {[%emt 0:00:22]} 4. e3 {[%emt 0:00:06]} Nc6 {[%emt 0:01:03]} 5. Bb5 {[%emt 0:00:08]} Bd7 {[%emt 0:00:10]} 6. O-O {[%emt 0:00:07]} e6 {[%emt 0:00:17]} 7. c4 {[%emt 0:00:04] A06: Réti Opening: 1 Nf3 d5.} dxc4 {[%emt 0:01:11]} 8. bxc4 {[%emt 0:00:04]} Be7 {[%emt 0:00:44]} 9. Nc3 {[%emt 0:09:57]} O-O {[%emt 0:02:56] [#]} 10. Qe2 $146 {[%emt 0:03:50]} ({Predecessor:} 10. Ne2 Na5 11. Qc2 Rc8 12. Bxd7 Nxd7 13. d3 a6 14. Ng3 Bf6 15. Ne4 Bxb2 16. Qxb2 {1-0 (47) Nepomniachtchi,I (2784)-Nakamura,H (2736) Chess.com INT 2020}) 10... Qc7 {[%emt 0:05:24]} 11. Rab1 {[%emt 0:03:26]} Rad8 {[%emt 0:04:34]} 12. Rfd1 {[%emt 0:08:45]} Bc8 {[%emt 0:11:37]} 13. h3 {[%emt 0:10:17]} (13. Bxc6 $5 Qxc6 14. Nb5 $11) 13... b6 {[%emt 0:06:24] The position is equal.} 14. a3 {[%emt 0:04:59]} Bb7 {[%emt 0:02:33]} 15. Ba4 {[%emt 0:00:04]} Na5 {[%emt 0:05:35]} 16. d3 {[%emt 0:04:14]} Qb8 {[%emt 0:03:04]} 17. Ba1 {[%emt 0:03:25]} Ne8 {[%emt 0:06:00][%cal Bf6e8,Be8d6,Bd6f5][%mdl 32]} 18. Nd2 {[%emt 0:10:30]} Nd6 {[%emt 0:05:22]} 19. Nb5 {[%emt 0:06:15]} Nf5 {[%emt 0:03:45]} 20. Bc2 {[%emt 0:07:45]} Nc6 {[%emt 0:05:40]} 21. Ne4 {[%emt 0:10:01]} (21. Nf3 $5 {[%cal Rd3d4]}) 21... Rd7 {[%emt 0:12:22]} (21... Nh4 $5 {[%cal Rf7f5]}) 22. Qg4 {[%emt 0:02:05]} Ne5 {[%emt 0:01:34]} 23. Qf4 {[%emt 0:00:30]} Nc6 {[%emt 0:00:49]} 24. Qg4 {[%emt 0:00:14]} Ne5 {[%emt 0:00:58]} 25. Qf4 {[%emt 0:01:53]} Nc6 {[%emt 0:00:30]} 26. Qg4 {[%emt 0:04:30] An even fight not without its subleties.  Weighted Error Value: White=0.06 (flawless) /Black=0.05 (flawless)} 1/2-1/2

[Event "FRA-ch Teams Top 16-A 2022"]
[Site "Chartres"]
[Date "2022.06.09"]
[Round "1.10"]
[White "Ganguly, Surya Shekhar"]
[Black "Dourerassou, Jonathan"]
[Result "1/2-1/2"]
[ECO "B01"]
[WhiteElo "2616"]
[BlackElo "2446"]
[Annotator "TA"]
[PlyCount "118"]
[EventDate "2022.06.09"]
[EventType "team-tourn"]
[EventCountry "FRA"]
[SourceTitle "playchess.com"]
[Source "ChessBase"]
[SourceQuality "1"]
[TimeControl "40/5400+30:1800+30"]

{[%evp 9,118,42,50,55,53,52,61,33,41,41,39,42,48,42,71,61,64,32,46,16,14,13,31,0,50,38,38,26,75,63,70,56,56,49,60,47,61,31,34,26,23,28,29,18,29,20,28,8,8,-27,-19,-33,-38,-158,-127,-126,-122,-131,-120,-265,-267,-252,-265,-187,-120,-125,-120,-119,-108,-108,-74,-80,-73,-79,-32,-32,-32,-32,0,-32,-3,-32,-32,-32,-32,-32,-32,-32,-32,-32,0,0,0,0,0,0,0,0,0,0,0,0,0,0,0,0,0,0,0,0,0]} 1. e4 {[%emt 0:00:39]} d5 {[%emt 0:00:12]} 2. exd5 {[%emt 0:00:19]} Qxd5 {[%emt 0:00:07]} 3. Nc3 {[%emt 0:00:07]} Qd8 {[%emt 0:00:07]} 4. d4 {[%emt 0:01:04]} Nf6 {[%emt 0:00:08]} 5. Nf3 {[%emt 0:00:34]} g6 {[%emt 0:00:07]} 6. Bc4 {[%emt 0:01:15] B01: Scandinavian Defence.} Bg7 {[%emt 0:00:07]} 7. O-O {[%emt 0:00:06]} O-O {[%emt 0:00:06]} 8. h3 {[%emt 0:01:58] White is slightly better.} a6 {[%emt 0:00:26]} 9. a4 {[%emt 0:02:39]} b6 {[%emt 0:00:17]} 10. Bg5 {[%emt 0:05:05]} Bb7 {[%emt 0:00:13]} 11. Qe2 {[%emt 0:01:02]} Nc6 {[%emt 0:05:31]} 12. Rad1 {[%emt 0:02:42] White is much more active. The black rooks are badly placed.} Qd6 {[%emt 0:04:30]} 13. Rfe1 {[%emt 0:01:40]} e6 {[%emt 0:04:50]} 14. Bh4 {[%emt 0:19:22]} Ne7 {[%emt 0:12:49]} 15. Ne5 {[%emt 0:10:12]} Ned5 {[%emt 0:13:23]} 16. Nxd5 {[%emt 0:01:58]} Nxd5 {[%emt 0:09:24]} (16... exd5 $11 17. Bb3 Rae8) 17. Bg3 {[%emt 0:01:20][%cal Oe5g6]} Qb4 {[%emt 0:00:51][%csl LRa4,LRb2]} 18. c3 {[%emt 0:07:30]} Qe7 {[%emt 0:12:14] [#]} (18... Qxa4 $11 19. Ra1 Qe8) 19. Qf3 $146 {[%emt 0:04:06]} ({Predecessor:} 19. a5 b5 20. Bb3 h5 21. Nd3 Qg5 22. Qd2 Qd8 23. Nc5 Bc6 24. Be5 Re8 25. Bxg7 Kxg7 {1-0 (62) Mishra,A (2120)-Colas,J (2309) Burlingame 2019}) 19... Rad8 {[%emt 0:02:58]} 20. Qd3 {[%emt 0:01:45]} Qe8 {[%emt 0:04:17]} 21. Bxa6 {[%emt 0:03:22]} Bxa6 {[%emt 0:00:47]} 22. Qxa6 {[%emt 0:00:07]} Ra8 {[%emt 0:00:08]} 23. Qb5 {[%emt 0:00:46]} Rxa4 {[%emt 0:00:35]} 24. Nc6 {[%emt 0:03:12]} Ra5 {[%emt 0:04:32]} 25. Qc4 {[%emt 0:00:21]} Ra8 {[%emt 0:01:29]} 26. Ra1 {[%emt 0:03:37]} Qd7 {[%emt 0:01:10]} 27. Qb5 {[%emt 0:03:16]} h5 {[%emt 0:06:26]} 28. Bh4 {[%emt 0:06:38]} Kh7 {[%emt 0:00:35]} 29. Bg5 {[%emt 0:01:04]} f6 {[%emt 0:04:48]} 30. Be3 {[%emt 0:11:24]} Ne7 {[%emt 0:02:33] ...Rxa1 is the strong threat.} 31. Na7 {[%emt 0:00:27] [#]} (31. Rxa8 Rxa8 32. d5 Nxd5 $17) (31. d5 $1 $15) 31... c6 $1 $17 {[%emt 0:03:07]} 32. Qxb6 {[%emt 0:00:06]} Rfb8 $36 {[%emt 0:00:12][%mdl 2112] Skewer. Keeping White busy.} 33. Qc5 {[%emt 0:00:20]} Rb7 {[%emt 0:01:34]} 34. d5 {[%emt 0:00:38]} (34. Nxc6 $17 Rxa1 35. Rxa1 Nxc6 36. Ra6) 34... cxd5 $19 {[%emt 0:00:21]} (34... Nxd5 35. Red1 $17) ({Worse is} 34... exd5 35. Ra6 $15) 35. Ra6 {[%emt 0:01:28]} Nf5 {[%emt 0:04:16]} ({Stronger than} 35... Rxb2 36. Rd6 Qa4 37. Qd4 Qxd4 38. Bxd4 $17) 36. Rea1 {[%emt 0:00:07]} Bf8 {[%emt 0:00:22]} (36... Nxe3 $19 37. Qxe3 Rxb2) 37. Qc6 $17 {[%emt 0:01:33]} Qxc6 {[%emt 0:00:35]} 38. Nxc6 {[%emt 0:00:10]} Rxa6 {[%emt 0:00:04]} 39. Rxa6 {[%emt 0:00:07]} Nxe3 {[%emt 0:00:06]} 40. fxe3 {[%emt 0:00:30]} Rxb2 {[%emt 0:00:09] White must now prevent ...Bc5.} 41. Nb4 {[%emt 0:08:03]} Bxb4 {[%emt 0:11:54]} (41... Kg7 $17 42. Nd3 Rb1+ 43. Kf2 e5 44. Ra7+ Kg8) 42. cxb4 $15 {[%emt 0:00:05]} Rxb4 {[%emt 0:00:06] [#] aiming for ...Re4.} 43. Rxe6 $17 {[%emt 0:00:05][%mdl 4096] Endgame KR-KR} Re4 {[%emt 0:00:24]} 44. Rd6 {[%emt 0:02:10]} Re5 {[%emt 0:00:26]} 45. h4 {[%emt 0:04:52]} ({But not} 45. Kf2 Rf5+ 46. Ke2 h4 $15) 45... Rf5 {[%emt 0:00:52]} 46. g3 {[%emt 0:02:57]} Kg7 {[%emt 0:00:32]} 47. Rd7+ {[%emt 0:00:13]} Kg8 {[%emt 0:01:50]} 48. Kg2 {[%emt 0:00:22]} Kf8 {[%emt 0:00:05]} 49. Ra7 {[%emt 0:01:06]} Ke8 {[%emt 0:02:45]} (49... Re5 $5 {[%cal Re5e3]} 50. Kf3 Re7 $17) 50. Rg7 {[%emt 0:03:57] The position is equal.} Re5 {[%emt 0:01:36]} 51. Kf3 {[%emt 0:00:57]} Kf8 {[%emt 0:00:17]} 52. Rd7 {[%emt 0:00:16]} Rf5+ {[%emt 0:00:36]} 53. Kg2 {[%emt 0:00:15]} Ke8 {[%emt 0:00:19]} 54. Rg7 {[%emt 0:00:08]} g5 {[%emt 0:00:08]} 55. hxg5 {[%emt 0:00:47]} fxg5 {[%emt 0:00:07]} 56. g4 {[%emt 0:01:39]} hxg4 {[%emt 0:00:25]} 57. Kg3 {[%emt 0:00:06]} Rf3+ {[%emt 0:00:18]} 58. Kxg4 {[%emt 0:00:05]} Rxe3 {[%emt 0:00:12]} 59. Rxg5 {[%emt 0:00:12]} d4 {[%emt 0:00:11] White happily takes the draw.  Weighted Error Value: White=0.14 (very precise) /Black=0.07 (flawless)} 1/2-1/2

[Event "FRA-ch Teams Top 16-A 2022"]
[Site "Chartres"]
[Date "2022.06.09"]
[Round "1.11"]
[White "Eden, James"]
[Black "Visakh N R"]
[Result "1-0"]
[ECO "B15"]
[WhiteElo "2273"]
[BlackElo "2506"]
[Annotator "TA"]
[PlyCount "75"]
[EventDate "2022.06.09"]
[EventType "team-tourn"]
[EventCountry "FRA"]
[SourceTitle "playchess.com"]
[Source "ChessBase"]
[SourceQuality "1"]
[TimeControl "40/5400+30:1800+30"]

{[%evp 14,75,23,24,34,24,51,26,26,16,14,8,10,18,20,0,0,-27,-34,-31,-37,-40,-33,-44,-36,-28,-56,-99,-116,-115,-105,-140,-56,-135,-131,-166,-56,-136,-99,-106,-124,-126,-70,-56,0,0,0,0,0,0,0,0,887,857,864,879,911,902,893,868,1087,931,1136,1129]} 1. e4 {[%emt 0:00:03]} c6 {[%emt 0:00:49]} 2. d4 {[%emt 0:00:12]} d5 {[%emt 0:00:10]} 3. Nd2 {[%emt 0:00:15]} dxe4 {[%emt 0:00:06]} 4. Nxe4 {[%emt 0:00:06]} Nf6 {[%emt 0:00:03]} 5. Nxf6+ {[%emt 0:00:09]} exf6 {[%emt 0:00:02]} 6. c3 {[%emt 0:00:35]} Bd6 {[%emt 0:01:56]} 7. Bd3 {[%emt 0:00:13]} O-O {[%emt 0:01:13]} 8. Qc2 {[%emt 0:00:13] Active counter play!} Re8+ {[%emt 0:00:33] B15: Caro-Kann: 3 Nc3: 3...g6 and 3...dxe4 4 Nxe4 Nf6 5 Nxf6+ exf6.} 9. Ne2 {[%emt 0:00:11]} h5 {[%emt 0:00:16]} 10. Be3 {[%emt 0:01:58]} Nd7 {[%emt 0:03:41] White has an edge.} 11. O-O-O {[%emt 0:00:58]} Nf8 {[%emt 0:00:06]} 12. Kb1 {[%emt 0:02:07]} Be6 {[%emt 0:04:05]} 13. c4 {[%emt 0:00:48]} Rc8 {[%emt 0:00:29]} 14. Nc3 {[%emt 0:00:41]} Bb4 {[%emt 0:01:13]} 15. a3 {[%emt 0:12:30]} Bxc3 {[%emt 0:00:07]} 16. Qxc3 {[%emt 0:00:13]} b5 {[%emt 0:14:20]} 17. d5 {[%emt 0:05:13]} cxd5 {[%emt 0:00:10][%cal Rb5c4]} 18. c5 {[%emt 0:00:08]} a6 {[%emt 0:05:03] [#]} 19. h3 $146 {[%emt 0:03:49]} ({Predecessor:} 19. Rc1 Rc6 20. Rhd1 Qd7 21. Ka1 Ng6 22. Bb1 Rec8 23. Bd4 Bf5 24. Ba2 Ne7 25. h3 {0-1 (44) Do Valle Cardoso,L (2301)-Yoo,C (2457) Chess.com INT 2021}) 19... Ng6 {[%emt 0:05:25]} 20. g4 {[%emt 0:07:20]} hxg4 {[%emt 0:06:50]} 21. hxg4 {[%emt 0:00:27]} Bxg4 {[%emt 0:04:03]} 22. Rdg1 {[%emt 0:10:30]} Qd7 {[%emt 0:06:07]} ({Black should play} 22... Bf3 $1 $17 {[%cal Rf3h1]} 23. Rh3 Be4) 23. Rg3 {[%emt 0:14:05]} (23. Bd4 $1 $15) 23... Bf5 $17 {[%emt 0:08:41][%cal Oa6a5]} 24. Bd4 {[%emt 0:06:16]} Rc6 {[%emt 0:16:39]} (24... a5 $19 25. Qc2 Bxd3 26. Rxd3 b4) 25. Rh5 {[%emt 0:05:29]} ({Better is} 25. Ka2 $15) 25... Bxd3+ {[%emt 0:07:41]} 26. Qxd3 {[%emt 0:00:30]} Re1+ {[%emt 0:01:04]} 27. Ka2 {[%emt 0:00:25][%cal Of2f4]} Qe6 {[%emt 0:00:10]} (27... Re4 $17 {White must now prevent ...Nf4.} 28. Rgh3 Kf8) 28. Rgh3 $15 {[%emt 0:05:31]} Qe4 {[%emt 0:01:30]} ({Black should try} 28... Kf8 $15) 29. Qg3 $1 $11 {[%emt 0:01:17] Qb8+ is the strong threat.} Qb1+ {[%emt 0:09:12]} (29... Rc8 $5 30. Qh2 Qb1+ 31. Kb3 Qd1+ 32. Ka2 Qa1+ 33. Kb3 Qd1+ 34. Ka2 Qa1+ 35. Kb3 Qd1+ $11) 30. Kb3 {[%emt 0:00:06]} Qd1+ {[%emt 0:00:10]} 31. Ka2 {[%emt 0:00:44] Threatening mate with Qb8+. Dancing on a razor blade.} Qb1+ {[%emt 0:00:41]} 32. Kb3 {[%emt 0:00:02] White threatens Qb8+ and mate.} Re8 {[%emt 0:03:19][%mdl 8192] Against Qb8} (32... Rc8 $11 33. Rh8+ Nxh8 34. Rxh8+ Kxh8 35. Qh3+ Qh7 36. Qxc8+ Qg8 37. Qh3+ Qh7 38. Qc8+ Qg8 39. Qh3+ Qh7 40. Qc8+) 33. Rh1 $18 {[%emt 0:01:23] White is clearly winning.} Qe4 {[%emt 0:00:10] [#]} 34. Qh3 $1 {[%emt 0:00:52][%cal Oh5h8] Rh8+! would kill now.} Kf8 {[%emt 0:00:05] [#]} (34... Qxh1 35. Qxh1) 35. Qd7 $1 {[%emt 0:00:40][%csl LRc6,LRd5] White wants to mate with Rh8+.} Kg8 {[%emt 0:01:17] Prevents Rh8+.} 36. Qxc6 {[%emt 0:00:20]} a5 {[%emt 0:00:32]} 37. Qxd5 {[%emt 0:01:44]} Qd3+ {[%emt 0:00:30]} 38. Bc3 {[%emt 0:00:46] Quite a comeback for White.  Weighted Error Value: White=0.17 (very precise) /Black=0.18 (very precise)} 1-0

[Event "FRA-ch Teams Top 16-A 2022"]
[Site "Chartres"]
[Date "2022.06.09"]
[Round "1.12"]
[White "Feller, Sebastien"]
[Black "Sochacki, Wojtek"]
[Result "1/2-1/2"]
[ECO "C44"]
[WhiteElo "2569"]
[BlackElo "2324"]
[Annotator "TA"]
[PlyCount "34"]
[EventDate "2022.06.09"]
[EventType "team-tourn"]
[EventCountry "FRA"]
[SourceTitle "playchess.com"]
[Source "ChessBase"]
[SourceQuality "1"]
[TimeControl "40/5400+30:1800+30"]

{[%evp 13,34,-58,-57,-58,-64,-67,-39,-45,-52,-45,-46,-53,-55,-42,-42,-51,-63,-56,-51,-46,13,-36,-1]} 1. e4 {[%emt 0:03:07]} e5 {[%emt 0:00:12]} 2. Nf3 {[%emt 0:04:12]} Nc6 {[%emt 0:00:08]} 3. d3 {[%emt 0:01:47]} Nf6 {[%emt 0:11:33]} 4. g3 {[%emt 0:00:34]} d5 {[%emt 0:04:35]} 5. Nbd2 {[%emt 0:00:34]} Bc5 {[%emt 0:00:59]} 6. Bg2 {[%emt 0:00:17]} dxe4 {[%emt 0:01:04]} 7. dxe4 {[%emt 0:00:56]} O-O {[%emt 0:00:10]} 8. O-O {[%emt 0:00:08] C44: Ponziani Opening and Scotch Gambit.} a5 {[%emt 0:03:17][%cal Ba7a5,Ba5a4][%mdl 32]} 9. c3 {[%emt 0:11:15]} a4 {[%emt 0:20:28]} 10. Qc2 {[%emt 0:14:17] Prevents Qd3.} b6 {[%emt 0:05:02]} 11. Nc4 {[%emt 0:03:56]} Ng4 {[%emt 0:48:32] [#]} 12. h3 $146 {[%emt 0:21:41]} ({Predecessor:} 12. Ne3 Nxe3 13. Bxe3 Bxe3 14. fxe3 Qe7 15. Rf2 {0-1 (33) Bersamina,P (1927)-De Ramos,J (2314) Olongapo City 2010}) 12... Ba6 {[#] And now ...Nxf2 would win.} 13. b3 {[%emt 0:34:16]} axb3 {[%emt 0:00:00]} 14. axb3 {[%emt 0:00:00]} Bxc4 {[%emt 0:00:00]} 15. Rxa8 {[%emt 0:00:00]} Qxa8 {[%emt 0:00:00]} 16. bxc4 {[%emt 0:00:00]} Nxf2 (16... Nf6 $15) 17. Kh2 {[%emt 0:02:00]} (17. Rxf2 $11 Qa1 {[#]} 18. Bf1 $1) 17... Qa6 {[%emt 0:03:00] Weighted Error Value: White=0.07 (flawless) /Black=0.10 (very precise)} 1/2-1/2